fUSD/lending_fUSD_20240904
["ID","MTS","AMOUNT","RATE_DAILY","PERIOD"]
[337178665,1725491431645,-5921.53429979,0.00013048,2]
[337178666,1725491431655,-150.0,0.00013066,2]
[337178667,1725491431666,-245.67,0.00013081,2]
[337178668,1725491431676,-1000.0,0.00013089,2]
[337178669,1725491431686,-169.44,0.0001309,2]
[337178670,1725491431695,-600.09,0.0001309,2]
[337178671,1725491431706,-1250.89,0.0001309,2]
[337178672,1725491431715,-3101.93,0.0001309,2]
[337178673,1725491431725,-12591.43265804,0.00013103,2]
[337178674,1725491431737,-2883.57498914,0.00013103,2]
[337178675,1725491431748,-368.45868927,0.00013103,2]
[337178676,1725491431767,-6846.29871012,0.00013103,2]
[337178677,1725491431778,-877.80665609,0.00013103,2]
[337178678,1725491431790,-332.42829734,0.00013103,2]
[337178679,1725491431799,-40.71585617,0.00013113,2]
[337178680,1725491431810,-209.28414383,0.00013113,2]
[337178681,1725491431819,-194.37005005,0.00013113,2]
[337178682,1725491431832,-305.61994995,0.00013113,2]
[337178683,1725491431841,-299.99,0.00013113,2]
[337178684,1725491431850,-150.99,0.00013113,2]
[337178685,1725491431860,-4282.13429735,0.00013113,2]
[337178686,1725491431878,-3641.40814063,0.00013113,2]
[337178687,1725491431889,-34516.60653267,0.00013113,2]
[337178688,1725491431901,-404.0365253,0.00013113,2]
[337178689,1725491431930,-325.89,0.00013113,2]
[337178690,1725491431941,-2500.0,0.00013113,2]
[337178691,1725491431958,-5255.66450405,0.00013113,2]
[337178692,1725491431967,-2994.42,0.00013146,2]
[337178693,1725491431977,-250.0,0.00013158,2]
[337178694,1725491431987,-450.0,0.00013189,2]
[337178695,1725491431996,-542.84,0.00013195,2]
[337178696,1725491432005,-1361.63,0.00013201,2]
[337178697,1725491432015,-911.85,0.00013201,2]
[337178698,1725491432024,-750.0,0.00013207,2]
[337178699,1725491432034,-8541.68,0.00013207,2]
[337178700,1725491432043,-1500.0,0.0001323,2]
[337178701,1725491432052,-163.6,0.0001323,2]
[337178702,1725491432062,-1136.31,0.00013241,2]
[337178703,1725491432071,-7324.75,0.00013326,2]
[337178704,1725491432081,-1024.12,0.00013472,2]
[337178705,1725491432101,-500.0,0.00013699,2]
[337178706,1725491432110,-500.0,0.000137,2]
[337178707,1725491432119,-151.94,0.00013831,2]
[337178708,1725491432129,-151.94,0.00013835,2]
[337178709,1725491432138,-151.94,0.00013839,2]
[337178710,1725491432148,-151.94,0.00013842,2]
[337178711,1725491432157,-151.94,0.00013846,2]
[337178712,1725491432166,-151.94,0.0001385,2]
[337178713,1725491432176,-151.94,0.00013854,2]
[337178714,1725491432186,-151.94,0.00013858,2]
[337178715,1725491432196,-151.94,0.00013862,2]
[337178716,1725491432207,-151.94,0.00013865,2]
[337178717,1725491432217,-151.94,0.00013869,2]
[337178718,1725491432226,-151.94,0.00013873,2]
[337178719,1725491432235,-151.94,0.00013877,2]
[337178720,1725491432244,-151.94,0.00013881,2]
[337178721,1725491432254,-151.94,0.00013885,2]
[337178722,1725491432263,-151.94,0.00013888,2]
[337178723,1725491432272,-151.94,0.00013892,2]
[337178724,1725491432282,-151.94,0.00013896,2]
[337178725,1725491432291,-151.94,0.000139,2]
[337178726,1725491432301,-170.78,0.00014016,2]
[337178727,1725491432310,-191.66,0.00014131,2]
[337178728,1725491432319,-150.0,0.00014621,2]
[337178729,1725491432329,-1000.0,0.000147,2]
[337178730,1725491432341,-519.87,0.0001472,2]
[337178731,1725491432350,-357.33,0.0001472,2]
[337178732,1725491432359,-357.33,0.0001472,2]
[337178733,1725491432368,-357.33,0.0001472,2]
[337178734,1725491432377,-357.33,0.0001472,2]
[337178735,1725491432387,-357.33,0.0001472,2]
[337178736,1725491432397,-357.33,0.0001472,2]
[337178737,1725491432406,-357.33,0.0001472,2]
[337178738,1725491432415,-357.33,0.0001472,2]
[337178739,1725491432425,-357.33,0.0001472,2]
[337178740,1725491432434,-357.33,0.0001472,2]
[337178741,1725491432444,-1000.0,0.00014725,2]
[337178742,1725491432453,-213.8666,0.00014794,2]
[337178743,1725491432463,-2500.0,0.00014794,2]
[337178744,1725491432472,-3791.1011,0.00014794,2]
[337178745,1725491432486,-321.10559008,0.00014794,2]
[337178746,1725491432495,-602.19037199,0.00014873,2]
[337178747,1725491432505,-155.57057126,0.00014873,2]
[337178748,1725491432515,-500.0,0.00014873,2]
[337178749,1725491432525,-500.0,0.00014873,2]
[337178750,1725491432535,-500.0,0.00014873,2]
[337178751,1725491432544,-4389.87986809,0.00014876,2]
[337178752,1725491432554,-150.56,0.00014884,2]
[337178753,1725491432564,-4389.87986809,0.00014888,2]
[337178754,1725491432574,-525.34,0.00014893,2]
[337178755,1725491432584,-500.0,0.00014893,2]
[337178756,1725491432593,-2344.91,0.00014893,2]
[337178757,1725491432603,-500.0,0.00014893,2]
[337178758,1725491432612,-500.0,0.00014893,2]
[337178759,1725491432621,-501.62,0.00014893,2]
[337178760,1725491432631,-500.0,0.00014893,2]
[337178761,1725491432640,-236.70302981,0.00014893,2]
[337178762,1725491432649,-500.0,0.00014893,2]
[337178763,1725491432659,-630.0,0.00014893,2]
[337178764,1725491432668,-500.0,0.00014893,2]
[337178765,1725491432678,-500.0,0.00014893,2]
[337178766,1725491432688,-500.0,0.00014893,2]
[337178767,1725491432698,-500.0,0.00014893,2]
[337178768,1725491432707,-1172.46,0.00014893,2]
[337178769,1725491432717,-500.0,0.00014893,2]
[337178770,1725491432728,-500.0,0.00014893,2]
[337178771,1725491432737,-500.0,0.00014893,2]
[337178772,1725491432747,-2220.1,0.00014893,2]
[337178773,1725491432757,-500.0,0.00014893,2]
[337178774,1725491432767,-500.0,0.00014893,2]
[337178775,1725491432776,-500.0,0.00014893,2]
[337178776,1725491432786,-5156.15,0.00014893,2]
[337178777,1725491432797,-500.0,0.00014893,2]
[337178778,1725491432806,-500.0,0.00014893,2]
[337178779,1725491432816,-500.0,0.00014893,2]
[337178780,1725491432827,-101452.10573434,0.00014894,2]
[337178783,1725491437703,-1200.2826,0.00014794,2]
[337178784,1725491437713,-1427.06,0.00014893,2]
[337178785,1725491437723,-7822.36846566,0.00014894,2]
[337178786,1725491437732,-4802.2494,0.00014894,2]
[337178787,1725491437742,-500.0,0.00014894,2]
[337178788,1725491437753,-500.0,0.00014894,2]
[337178789,1725491437762,-543.32,0.00014894,2]
[337178790,1725491437771,-500.0,0.00014894,2]
[337178791,1725491437780,-577.31,0.00014894,2]
[337178792,1725491437789,-511.42,0.00014894,2]
[337178793,1725491437800,-502.04395497,0.00014894,2]
[337178794,1725491437809,-290.4834324,0.00014894,2]
[337178795,1725491437819,-500.0,0.00014894,2]
[337178796,1725491437830,-500.0,0.00014894,2]
[337178797,1725491437840,-500.0,0.00014894,2]
[337178798,1725491437849,-500.0,0.00014894,2]
[337178799,1725491437861,-500.0,0.00014894,2]
[337178800,1725491437870,-531.1,0.00014894,2]
[337178801,1725491437880,-624.41,0.00014894,2]
[337178802,1725491437889,-500.0,0.00014894,2]
[337178803,1725491437898,-1357.83,0.00014894,2]
[337178804,1725491437907,-642.53,0.00014894,2]
[337178805,1725491437917,-500.0,0.00014894,2]
[337178806,1725491437926,-1102.37,0.00014894,2]
[337178807,1725491437935,-500.0,0.00014894,2]
[337178808,1725491437944,-500.0,0.00014894,2]
[337178809,1725491437953,-500.0,0.00014894,2]
[337178810,1725491437962,-1088.74,0.00014894,2]
[337178811,1725491437971,-1001.57,0.00014894,2]
[337178812,1725491437980,-500.0,0.00014894,2]
[337178813,1725491437989,-862.85,0.00014894,2]
[337178814,1725491437998,-708.14,0.00014894,2]
[337178815,1725491438007,-500.0,0.00014894,2]
[337178816,1725491438017,-500.0,0.00014894,2]
[337178817,1725491438026,-1551.7,0.00014894,2]
[337178818,1725491438036,-500.0,0.00014894,2]
[337178819,1725491438045,-613.8,0.00014894,2]
[337178820,1725491438054,-500.0,0.00014894,2]
[337178821,1725491438063,-781.19,0.00014894,2]
[337178822,1725491438073,-783.79,0.00014894,2]
[337178823,1725491438082,-500.0,0.00014894,2]
[337178824,1725491438091,-500.0,0.00014894,2]
[337178825,1725491438100,-616.38,0.00014894,2]
[337178826,1725491438109,-507.05,0.00014894,2]
[337178827,1725491438118,-936.13,0.00014894,2]
[337178828,1725491438128,-765.8,0.00014894,2]
[337178829,1725491438137,-551.6,0.00014894,2]
[337178830,1725491438147,-580.15,0.00014894,2]
[337178831,1725491438158,-500.0,0.00014894,2]
[337178832,1725491438168,-501.42846647,0.00014894,2]
[337178833,1725491438179,-500.0,0.00014894,2]
[337178834,1725491438187,-688.4,0.00014894,2]
[337178835,1725491438196,-521.76,0.00014894,2]
[337178837,1725491438206,-500.0,0.00014894,2]
[337178839,1725491438215,-1260.25,0.00014894,2]
[337178841,1725491438224,-500.0,0.00014894,2]
[337178843,1725491438234,-500.0,0.00014894,2]
[337178845,1725491438243,-944.59,0.00014894,2]
[337178847,1725491438252,-628.98,0.00014894,2]
[337178849,1725491438262,-500.0,0.00014894,2]
[337178851,1725491438271,-500.0,0.00014894,2]
[337178853,1725491438280,-500.0,0.00014894,2]
[337178855,1725491438289,-683.23,0.00014894,2]
[337178857,1725491438298,-775.21,0.00014894,2]
[337178859,1725491438307,-500.0,0.00014894,2]
[337178861,1725491438316,-500.0,0.00014894,2]
[337178863,1725491438326,-500.0,0.00014894,2]
[337178865,1725491438335,-613.13,0.00014894,2]
[337178867,1725491438344,-820.61,0.00014894,2]
[337178869,1725491438353,-986.54,0.00014894,2]
[337178871,1725491438363,-500.0,0.00014894,2]
[337178873,1725491438372,-500.0,0.00014894,2]
[337178875,1725491438382,-500.0,0.00014894,2]
[337178877,1725491438392,-500.0,0.00014894,2]
[337178879,1725491438403,-922.24,0.00014894,2]
[337178881,1725491438412,-614.43,0.00014894,2]
[337178883,1725491438421,-500.0,0.00014894,2]
[337178885,1725491438432,-1060.46,0.00014894,2]
[337178887,1725491438441,-500.0,0.00014894,2]
[337178889,1725491438451,-1080.93,0.00014894,2]
[337178891,1725491438460,-500.0,0.00014894,2]
[337178893,1725491438469,-500.0,0.00014894,2]
[337178895,1725491438479,-1995.04,0.00014894,2]
[337178897,1725491438492,-626.66589592,0.00014894,2]
[337178899,1725491438502,-500.0,0.00014894,2]
[337178901,1725491438511,-497.45429928,0.00014894,2]
[337178902,1725491438520,-500.0,0.00014894,2]
[337178904,1725491438530,-500.0,0.00014894,2]
[337178906,1725491438539,-1032.39,0.00014894,2]
[337178908,1725491438548,-500.0,0.00014894,2]
[337178910,1725491438557,-500.0,0.00014894,2]
[337178912,1725491438567,-500.0,0.00014894,2]
[337178914,1725491438576,-500.0,0.00014894,2]
[337178915,1725491438585,-500.0,0.00014894,2]
[337178917,1725491438594,-930.11,0.00014894,2]
[337178919,1725491438605,-500.0,0.00014894,2]
[337178921,1725491438614,-500.0,0.00014894,2]
[337178923,1725491438623,-500.0,0.00014894,2]
[337178925,1725491438634,-604.29,0.00014894,2]
[337178927,1725491438643,-500.0,0.00014894,2]
[337178929,1725491438653,-500.0,0.00014894,2]
[337178931,1725491438662,-1156.55,0.00014894,2]
[337178933,1725491438672,-500.0,0.00014894,2]
[337178934,1725491438682,-500.0,0.00014894,2]
[337178936,1725491438691,-500.0,0.00014894,2]
[337178938,1725491438700,-623.46,0.00014894,2]
[337178940,1725491438709,-1052.88,0.00014894,2]
[337178942,1725491438718,-500.0,0.00014894,2]
[337178944,1725491438728,-500.0,0.00014894,2]
[337178947,1725491438738,-500.0,0.00014894,2]
[337178948,1725491438749,-622.24,0.00014894,2]
[337178950,1725491438759,-500.0,0.00014894,2]
[337178952,1725491438768,-500.0,0.00014894,2]
[337178954,1725491438777,-500.0,0.00014894,2]
[337178956,1725491438787,-500.0,0.00014894,2]
[337178958,1725491438798,-500.0,0.00014894,2]
[337178960,1725491438808,-500.0,0.00014894,2]
[337178961,1725491438817,-500.0,0.00014894,2]
[337178963,1725491438827,-500.0,0.00014894,2]
[337178965,1725491438839,-500.0,0.00014894,2]
[337178967,1725491438855,-500.0,0.00014894,2]
[337178969,1725491438864,-500.0,0.00014894,2]
[337178971,1725491438873,-500.0,0.00014894,2]
[337178973,1725491438882,-615.18,0.00014894,2]
[337178975,1725491438891,-500.0,0.00014894,2]
[337178977,1725491438900,-500.0,0.00014894,2]
[337178979,1725491438909,-500.0,0.00014894,2]
[337178981,1725491438919,-1017.11,0.00014894,2]
[337178983,1725491438927,-500.0,0.00014894,2]
[337178985,1725491438937,-500.0,0.00014894,2]
[337178987,1725491438946,-500.0,0.00014894,2]
[337178989,1725491438954,-574.07,0.00014894,2]
[337178991,1725491438963,-500.0,0.00014894,2]
[337178992,1725491438972,-500.0,0.00014894,2]
[337178994,1725491438981,-182.95,0.00014894,2]
[337178996,1725491438990,-500.0,0.00014894,2]
[337178998,1725491438999,-1166.54,0.00014894,2]
[337179000,1725491439008,-500.0,0.00014894,2]
[337179002,1725491439018,-500.0,0.00014894,2]
[337179004,1725491439028,-500.0,0.00014894,2]
[337179006,1725491439038,-1194.59,0.00014894,2]
[337179009,1725491439049,-500.0,0.00014894,2]
[337179011,1725491439059,-514.88,0.00014894,2]
[337179013,1725491439070,-523.19,0.00014894,2]
[337179015,1725491439079,-500.0,0.00014894,2]
[337179016,1725491439090,-697.63,0.00014894,2]
[337179019,1725491439100,-591.31355556,0.00014894,2]
[337179021,1725491439110,-693.6,0.00014894,2]
[337179022,1725491439119,-502.75603481,0.00014894,2]
[337179024,1725491439128,-500.0,0.00014894,2]
[337179026,1725491439138,-500.0,0.00014894,2]
[337179027,1725491439147,-1769.22,0.00014894,2]
[337179028,1725491439156,-500.0,0.00014894,2]
[337179029,1725491439168,-500.0,0.00014894,2]
[337179030,1725491439178,-500.0,0.00014894,2]
[337179031,1725491439187,-913.55,0.00014894,2]
[337179033,1725491439197,-368.90116732,0.00014894,2]
[337179035,1725491439208,-500.0,0.00014894,2]
[337179036,1725491439219,-654.47,0.00014894,2]
[337179037,1725491439229,-801.22,0.00014894,2]
[337179038,1725491439497,-500.0,0.00014894,2]
[337179039,1725491439507,-500.0,0.00014894,2]
[337179040,1725491439516,-500.0,0.00014894,2]
[337179041,1725491439525,-1484.16,0.00014894,2]
[337179042,1725491439536,-500.0,0.00014894,2]
[337179043,1725491439545,-500.0,0.00014894,2]
[337179044,1725491439555,-500.0,0.00014894,2]
[337179045,1725491439564,-500.0,0.00014894,2]
[337179046,1725491439574,-1424.1,0.00014894,2]
[337179047,1725491439584,-500.0,0.00014894,2]
[337179048,1725491439593,-500.0,0.00014894,2]
[337179049,1725491439603,-545.67,0.00014894,2]
[337179050,1725491439612,-500.0,0.00014894,2]
[337179051,1725491439621,-584.17,0.00014894,2]
[337179052,1725491439630,-500.0,0.00014894,2]
[337179054,1725491439640,-1134.69,0.00014894,2]
[337179055,1725491439649,-500.0,0.00014894,2]
[337179056,1725491439658,-781.46,0.00014894,2]
[337179057,1725491439668,-891.28,0.00014894,2]
[337179058,1725491439677,-500.0,0.00014894,2]
[337179059,1725491439686,-526.61,0.00014894,2]
[337179060,1725491439696,-500.0,0.00014894,2]
[337179061,1725491439705,-500.0,0.00014894,2]
[337179062,1725491439714,-1450.47,0.00014894,2]
[337179063,1725491439725,-500.0,0.00014894,2]
[337179064,1725491439735,-500.0,0.00014894,2]
[337179065,1725491439744,-500.0,0.00014894,2]
[337179066,1725491439753,-500.0,0.00014894,2]
[337179067,1725491439763,-628.83,0.00014894,2]
[337179068,1725491439772,-1162.93,0.00014894,2]
[337179069,1725491439781,-500.0,0.00014894,2]
[337179070,1725491439790,-500.0,0.00014894,2]
[337179071,1725491439799,-741.8,0.00014894,2]
[337179072,1725491439808,-500.0,0.00014894,2]
[337179073,1725491439817,-500.0,0.00014894,2]
[337179074,1725491439828,-1234.4,0.00014894,2]
[337179075,1725491439837,-586.25,0.00014894,2]
[337179076,1725491439847,-500.0,0.00014894,2]
[337179077,1725491439856,-500.0,0.00014894,2]
[337179078,1725491439866,-500.0,0.00014894,2]
[337179079,1725491439875,-500.0,0.00014894,2]
[337179080,1725491439884,-741.51,0.00014894,2]
[337179081,1725491439893,-767.33,0.00014894,2]
[337179082,1725491439903,-500.0,0.00014894,2]
[337179083,1725491439912,-500.0,0.00014894,2]
[337179084,1725491439921,-500.0,0.00014894,2]
[337179085,1725491439931,-500.0,0.00014894,2]
[337179086,1725491439940,-500.0,0.00014894,2]
[337179087,1725491439949,-500.0,0.00014894,2]
[337179088,1725491439958,-879.06,0.00014894,2]
[337179089,1725491439967,-500.0,0.00014894,2]
[337179090,1725491439976,-500.0,0.00014894,2]
[337179091,1725491439986,-632.15,0.00014894,2]
[337179092,1725491439995,-1609.23,0.00014894,2]
[337179093,1725491440004,-500.0,0.00014894,2]
[337179094,1725491440013,-500.0,0.00014894,2]
[337179095,1725491440022,-545.08,0.00014894,2]
[337179096,1725491440032,-500.0,0.00014894,2]
[337179097,1725491440042,-500.0,0.00014894,2]
[337179098,1725491440051,-500.0,0.00014894,2]
[337179099,1725491440061,-645.13,0.00014894,2]
[337179100,1725491440071,-500.0,0.00014894,2]
[337179101,1725491440083,-500.0,0.00014894,2]
[337179102,1725491440093,-577.91,0.00014894,2]
[337179103,1725491440102,-500.0,0.00014894,2]
[337179104,1725491440111,-1398.42,0.00014894,2]
[337179106,1725491440120,-500.0,0.00014894,2]
[337179108,1725491440129,-500.0,0.00014894,2]
[337179109,1725491440139,-500.0,0.00014894,2]
[337179111,1725491440148,-500.0,0.00014894,2]
[337179113,1725491440157,-186.61513081,0.00014894,2]
[337179116,1725491440182,-313.38486919,0.00014894,2]
[337179118,1725491440191,-714.85,0.00014894,2]
[337179120,1725491440202,-500.0,0.00014894,2]
[337179122,1725491440211,-500.0,0.00014894,2]
[337179124,1725491440221,-500.0,0.00014894,2]
[337179126,1725491440233,-500.0,0.00014894,2]
[337179128,1725491440242,-2299.74,0.00014894,2]
[337179130,1725491440253,-990.48,0.00014894,2]
[337179132,1725491440263,-500.0,0.00014894,2]
[337179134,1725491440273,-500.0,0.00014894,2]
[337179136,1725491440283,-500.0,0.00014894,2]
[337179138,1725491440294,-500.0,0.00014894,2]
[337179140,1725491440303,-166.3228763,0.00014894,2]
[337179142,1725491440313,-1171.96,0.00014894,2]
[337179144,1725491440323,-500.0,0.00014894,2]
[337179146,1725491440333,-500.0,0.00014894,2]
[337179148,1725491440343,-191.90959603,0.00014894,2]
[337179150,1725491440352,-500.0,0.00014894,2]
[337179152,1725491440363,-500.0,0.00014894,2]
[337179154,1725491440371,-500.0,0.00014894,2]
[337179156,1725491440383,-500.0,0.00014894,2]
[337179158,1725491440393,-1553.08,0.00014894,2]
[337179160,1725491440403,-500.0,0.00014894,2]
[337179162,1725491440412,-500.0,0.00014894,2]
[337179164,1725491440421,-500.0,0.00014894,2]
[337179166,1725491440430,-500.0,0.00014894,2]
[337179168,1725491440439,-500.0,0.00014894,2]
[337179170,1725491440450,-510.97,0.00014894,2]
[337179172,1725491440459,-500.0,0.00014894,2]
[337179174,1725491440468,-500.0,0.00014894,2]
[337179176,1725491440478,-984.29,0.00014894,2]
[337179178,1725491440491,-960.4,0.00014894,2]
[337179180,1725491440500,-500.0,0.00014894,2]
[337179182,1725491440510,-500.0,0.00014894,2]
[337179184,1725491440520,-500.0,0.00014894,2]
[337179186,1725491440529,-500.0,0.00014894,2]
[337179188,1725491440539,-3403.29,0.00014894,2]
[337179190,1725491440548,-500.0,0.00014894,2]
[337179192,1725491440558,-896.77,0.00014894,2]
[337179194,1725491440568,-500.0,0.00014894,2]
[337179196,1725491440577,-500.0,0.00014894,2]
[337179198,1725491440588,-500.0,0.00014894,2]
[337179200,1725491440598,-500.0,0.00014894,2]
[337179202,1725491440607,-534.81,0.00014894,2]
[337179204,1725491440616,-500.0,0.00014894,2]
[337179206,1725491440625,-500.0,0.00014894,2]
[337179208,1725491440634,-500.0,0.00014894,2]
[337179210,1725491440643,-500.0,0.00014894,2]
[337179211,1725491440652,-575.86,0.00014894,2]
[337179213,1725491440662,-500.0,0.00014894,2]
[337179215,1725491440671,-1221.99,0.00014894,2]
[337179217,1725491440680,-502.86657191,0.00014894,2]
[337179219,1725491440690,-500.0,0.00014894,2]
[337179221,1725491440699,-500.0,0.00014894,2]
[337179223,1725491440708,-500.0,0.00014894,2]
[337179225,1725491440717,-500.0,0.00014894,2]
[337179227,1725491440727,-500.0,0.00014894,2]
[337179229,1725491440736,-500.0,0.00014894,2]
[337179231,1725491440745,-500.0,0.00014894,2]
[337179233,1725491440754,-500.0,0.00014894,2]
[337179235,1725491440764,-2832.46,0.00014894,2]
[337179237,1725491440773,-500.0,0.00014894,2]
[337179239,1725491440782,-500.0,0.00014894,2]
[337179241,1725491440791,-500.0,0.00014894,2]
[337179243,1725491440800,-500.0,0.00014894,2]
[337179245,1725491440809,-500.0,0.00014894,2]
[337179247,1725491440818,-500.0,0.00014894,2]
[337179249,1725491440827,-500.0,0.00014894,2]
[337179250,1725491440836,-500.0,0.00014894,2]
[337179252,1725491440845,-1054.68,0.00014894,2]
[337179254,1725491440855,-500.0,0.00014894,2]
[337179256,1725491440864,-500.0,0.00014894,2]
[337179258,1725491440873,-814.93,0.00014894,2]
[337179259,1725491440882,-500.0,0.00014894,2]
[337179261,1725491440891,-345.29302126,0.00014894,2]
[337179263,1725491440901,-1094.7,0.00014894,2]
[337179265,1725491440910,-500.0,0.00014894,2]
[337179266,1725491440919,-500.0,0.00014894,2]
[337179268,1725491440929,-500.0,0.00014894,2]
[337179270,1725491440938,-500.0,0.00014894,2]
[337179272,1725491440947,-991.19,0.00014894,2]
[337179274,1725491440958,-1598.06,0.00014894,2]
[337179276,1725491440970,-1608.2,0.00014894,2]
[337179278,1725491440981,-500.0,0.00014894,2]
[337179280,1725491440992,-221.31762675,0.00014894,2]
[337179282,1725491441003,-500.0,0.00014894,2]
[337179284,1725491441014,-500.0,0.00014894,2]
[337179287,1725491441025,-500.0,0.00014894,2]
[337179289,1725491441036,-550.59,0.00014894,2]
[337179291,1725491441046,-532.29,0.00014894,2]
[337179293,1725491441056,-582.73,0.00014894,2]
[337179295,1725491441066,-519.62,0.00014894,2]
[337179296,1725491441075,-500.0,0.00014894,2]
[337179298,1725491441085,-500.0,0.00014894,2]
[337179300,1725491441094,-500.0,0.00014894,2]
[337179302,1725491441103,-500.0,0.00014894,2]
[337179304,1725491441112,-500.0,0.00014894,2]
[337179306,1725491441121,-270.26477817,0.00014894,2]
[337179308,1725491441130,-500.0,0.00014894,2]
[337179310,1725491441139,-500.0,0.00014894,2]
[337179312,1725491441148,-500.0,0.00014894,2]
[337179314,1725491441158,-500.0,0.00014894,2]
[337179315,1725491441167,-815.32,0.00014894,2]
[337179317,1725491441177,-500.0,0.00014894,2]
[337179319,1725491441187,-500.0,0.00014894,2]
[337179321,1725491441196,-2115.96,0.00014894,2]
[337179323,1725491441207,-1228.88,0.00014894,2]
[337179326,1725491441219,-500.0,0.00014894,2]
[337179327,1725491441229,-500.0,0.00014894,2]
[337179329,1725491441238,-500.0,0.00014894,2]
[337179331,1725491441247,-500.31728046,0.00014894,2]
[337179333,1725491441257,-500.0,0.00014894,2]
[337179335,1725491441267,-506.39,0.00014894,2]
[337179337,1725491441277,-575.91,0.00014894,2]
[337179339,1725491441287,-696.31,0.00014894,2]
[337179341,1725491441297,-2100.74,0.00014894,2]
[337179343,1725491441307,-500.0,0.00014894,2]
[337179345,1725491441317,-500.37291155,0.00014894,2]
[337179347,1725491441327,-1652.15,0.00014894,2]
[337179349,1725491441336,-500.0,0.00014894,2]
[337179351,1725491441347,-500.0,0.00014894,2]
[337179352,1725491441357,-528.97,0.00014894,2]
[337179354,1725491441366,-500.0,0.00014894,2]
[337179356,1725491441376,-2001.69,0.00014894,2]
[337179358,1725491441386,-500.0,0.00014894,2]
[337179360,1725491441395,-500.0,0.00014894,2]
[337179362,1725491441405,-500.0,0.00014894,2]
[337179364,1725491441415,-500.0,0.00014894,2]
[337179366,1725491441426,-697.65,0.00014894,2]
[337179368,1725491441435,-500.38167907,0.00014894,2]
[337179370,1725491441444,-808.43,0.00014894,2]
[337179372,1725491441454,-176.20591623,0.00014895,2]
[337179374,1725491441463,-182.953,0.00014895,2]
[337179375,1725491441473,-6736.9809,0.00014895,2]
[337179377,1725491441484,-7949.75324756,0.00014896,2]
[337179415,1725491441893,-1084.47,0.00014894,2]
[337179417,1725491441903,-973.17245244,0.00014896,2]
[337179419,1725491441913,-424.9518,0.00014896,2]
[337179421,1725491441922,-1000.0,0.00014896,2]
[337179422,1725491441931,-210.45798385,0.000149,2]
[337179425,1725491441944,-509.3973985,0.000149,2]
[337179427,1725491441957,-2021.21719163,0.000149,2]
[337179429,1725491441969,-1264.25000003,0.000149,2]
[337179431,1725491441980,-384.55729408,0.000149,2]
[337179433,1725491441990,-129.54332986,0.00014973,2]
[337179497,1725491442675,-257.884,0.00014893,2]
[337179516,1725491442855,-242.116,0.00014893,2]
[337179518,1725491442865,-471.79445,0.00014973,2]
[337179519,1725491442874,-500.81940285,0.00014973,2]
[337179521,1725491442884,-500.0,0.00014973,2]
[337179523,1725491442894,-310.34722632,0.00014973,2]
[337179524,1725491442903,-160.2917709,0.00014973,2]
[337179525,1725491442913,-201.10166491,0.00014983,2]